Cogmind - Beta 14 *** ADVENTURER MODE // 2024.09.29 @ 01:14:11 Player: Don Result: Destroyed by G-67 Veteran with Plasma Rifle Performance ------------- Evolutions (7) 3500 Regions Visited (13) 2600 Robots Destroyed (57) 285 Value Destroyed (2202) 2202 Prototype IDs (3) 60 Alien Tech Used (0) 0 Bonus (343) 343 TOTAL SCORE: 8990 Bonus ------- Follower Combat Kills 359 Friendly Fire -16 Cogmind --------- Core Integrity 0/1300 Matter 300/300 Energy 99/100 System Corruption 4% Temperature Cool (20) Movement Core (50) Location -3/Research Parts ------- > --- POWER (3) -------- (None) > --- PROPULSION (7) --- (None) > --- UTILITY (8) ------ Advanced Signal Interpreter Graphene Brace > --- WEAPON (3) ------- (None) > --- INVENTORY (5) ---- Improved Shock Absorption System Advanced Force Field Peak State ------------ > --- POWER ------------ Improved Ion Engine Antimatter Reactor > --- PROPULSION ------- Antigrav System Linear Gravjet Linear Gravjet Improved Gyrokinetic Inverter Improved Gyrokinetic Inverter Improved Gyrokinetic Inverter > --- UTILITY ---------- Advanced Cryofiber Web Advanced Coolant Injector Medium Storage Unit Advanced Weight Redist. System Advanced Signal Interpreter Advanced Transmission Jammer Graphene Brace Improved Field Recycling Unit > --- WEAPON ----------- High-powered Shock Rifle Tesla Rifle Railgun > --- INVENTORY -------- Linear Gravjet Improved Antigrav System Improved Gyrokinetic Inverter Improved Shock Absorption System Advanced Force Field [Rating: 110] Favorites ----------- Power Cooled Ion Engine Engine Cooled Ion Engine Power Core Light Nuclear Core Reactor Antimatter Reactor Propulsion Aluminum Leg Treads Light Treads Leg Aluminum Leg Hover Unit Linear Gravjet Flight Unit Nuclear Pulse Array Utility Improved Signal Interpreter Device Improved Field Recycling Unit Storage Large Storage Unit Processor Improved Signal Interpreter Hackware Hacking Suite Protection Hardened Medium Armor Plating Weapon Plasma Cannon Energy Gun Pulse Rifle Energy Cannon Plasma Cannon Ballistic Gun Minigun Launcher Improved Grenade Launcher Build | -11 -10 -9 -8 -8 -7 -6 -6 -6 -6 -6 -5 -4 -3 ------- Run | Yrd Mat Mat Mat Sto Fac Fac Was Fac Low Low Fac Fac Res Slots Evolved 14 | . . 2 2 . 2 2 . . . . 2 2 2 Power 2 | . . . . . . 1 . . . . . . 1 Propulsion 5 | . . 1 . . 2 . . . . . . 1 1 Utility 6 | . . 1 1 . . 1 . . . . 2 1 . Weapon 1 | . . . 1 . . . . . . . . . . Parts Attached 165 | 8 3 8 17 34 11 11 2 1 10 . 23 29 8 Power 17 | 1 . 1 1 2 1 1 . . 2 . 1 5 2 Engine 10 | 1 . 1 1 2 1 1 . . 1 . . 2 . Core 2 | . . . . . . . . . 1 . 1 . . Reactor 5 | . . . . . . . . . . . . 3 2 Propulsion 48 | 4 . 3 4 7 4 2 . . 1 . 9 11 3 Treads 4 | 1 . 2 . . 1 . . . . . . . . Leg 21 | 3 . 1 4 7 3 2 . . 1 . . . . Wheel . | . . . . . . . . . . . . . . Hover 20 | . . . . . . . . . . . 6 11 3 Flight 3 | . . . . . . . . . . . 3 . . Utility 66 | 1 2 2 8 20 3 5 1 1 4 . 9 8 2 Device 50 | . . 1 5 16 3 5 1 1 3 . 6 7 2 Storage 5 | 1 1 1 1 . . . . . . . . 1 . Processor 6 | . 1 . 2 1 . . . . . . 2 . . Hackware 1 | . . . . . . . . . . . 1 . . Protection 4 | . . . . 3 . . . . 1 . . . . Artifact . | . . . . . . . . . . . . . . Weapon 34 | 2 1 2 4 5 3 3 1 . 3 . 4 5 1 Energy Gun 16 | 2 1 2 1 3 . . . . 2 . 1 3 1 Energy Cannon 6 | . . . 3 1 . . . . . . 1 1 . Ballistic Gun 11 | . . . . 1 3 3 . . 1 . 2 1 . Ballistic Cannon . | . . . . . . . . . . . . . . Launcher 1 | . . . . . . . 1 . . . . . . Special Weapon . | . . . . . . . . . . . . . . Impact Weapon . | . . . . . . . . . . . . . . Slashing Weapon . | . . . . . . . . . . . . . . Piercing Weapon . | . . . . . . . . . . . . . . Special Melee Weapon . | . . . . . . . . . . . . . . Unidentified Prototypes 3 | . . . . 2 . . . . . . . 1 . Corrupted Parts 2 | . . . . . . . . . . . . 1 1 System Corruption 2 | . . . . . . . . . . . . 1 1 Parts Lost 42 | . . . . . . . 3 . 8 . . 10 21 Power 7 | . . . . . . . . . 2 . . 1 4 Propulsion 17 | . . . . . . . 2 . 3 . . 3 9 Utility 11 | . . . . . . . 1 . 1 . . 4 5 Weapon 7 | . . . . . . . . . 2 . . 2 3 Highest Loss Streak 16 | . . . . . . . 3 . 4 . . 2 16 To Critical Strikes . | . . . . . . . . . . . . . . Average Slot Usage (%) 82 | . 98 99 100 99 99 100 78 60 34 . 65 88 63 Engine 7 | . 14 11 9 9 7 13 13 13 5 . . 2 2 Leg 18 | . 28 30 18 27 37 30 24 13 6 . . . . Hover 5 | . . . . . . . . . . . 17 31 19 Device 14 | . . 11 15 12 11 20 13 13 8 . 19 30 21 Storage 5 | . 14 11 10 9 7 6 3 . . . . . 4 Processor 8 | . 12 11 10 13 10 6 6 6 5 . 3 5 4 Energy Gun 5 | . 28 22 6 . 7 6 6 6 1 . 1 2 4 Energy Cannon 7 | . . . 21 20 5 . . . . . 2 3 . Ballistic Gun 4 | . . . . 5 8 13 9 6 3 . 8 1 2 Peak Build Rating 110 | 6 7 13 32 36 45 54 53 33 36 1 79 108 110 Average Rating 39 | 3 6 11 26 33 42 52 42 33 22 1 57 93 75 On Entrance 31 | . 6 7 13 32 36 45 53 29 33 1 1 79 103 Naked Turns 85 | . . . . . . . . . 32 17 36 . . Heaviest Build 69 | 14 19 32 51 56 46 61 64 28 28 . 43 64 69 Greatest Support 70 | 20 20 40 40 45 70 65 65 30 30 3 45 65 65 Greatest Overweight (x) 4 | . . 3 2 1 . 1 1 . 4 . 2 1 2 Average Overweight (x) . | . . . . . . . . . . . . . . Largest Inventory Capacity 15 | 8 10 15 15 15 15 15 15 5 5 5 5 10 10 Average Capacity 10 | 6 8 14 15 15 15 15 10 5 5 5 5 5 9 Most Carried 15 | 7 9 15 15 15 15 15 15 4 5 5 5 5 6 Average Carried 10 | 4 7 13 14 14 14 14 10 4 4 5 4 4 3 Final Capacity 15 | 8 10 15 15 15 15 15 5 5 5 5 5 10 5 Final Carried 15 | 6 9 15 15 15 15 15 5 4 5 5 5 5 2 Class Distribution -------------------- 30% | Mutant 28% | Scavenger-Skirmisher 6% | Commander-Skirmisher 6% | Scavenger-Mutant 6% | Hacker-Tank 5% | Skirmisher 4% | Scavenger-Tank 4% | Hacker-Sprinter Dominant Class ---------------- Mutant | -10/Materials Mutant | -9/Materials Skirmisher | -8/Materials Scavenger-Skirmisher | -8/Storage Commander-Skirmisher | -7/Factory Scavenger-Skirmisher | -6/Factory Scavenger-Mutant | -6/Waste Scavenger-Mutant | -6/Factory Mutant | -6/Lower Caves Mutant | -6/Lower Caves Hacker-Tank | -5/Factory Hacker-Sprinter | -4/Factory Mutant | -3/Research Resources | -11 -10 -9 -8 -8 -7 -6 -6 -6 -6 -6 -5 -4 -3 ----------- Run | Yrd Mat Mat Mat Sto Fac Fac Was Fac Low Low Fac Fac Res Matter Collected 2117 | 239 51 200 170 446 181 195 . . 156 . 137 187 155 Remotely . | . . . . . . . . . . . . . . Salvage Created 2500 | . 145 266 473 793 236 132 . . 52 . 197 121 85 Parts 122 | . 10 16 27 28 11 3 . . 2 . 14 5 6 Haulers Intercepted . | . . . . . . . . . . . . . . Recyclers Shooed . | . . . . . . . . . . . . . . Parts Field Recycled 14 | . . . . . . . . . . . . 10 4 Retrieved Matter 86 | . . . . . . . . . . . . 66 20 Parts Self-Destructed 2 | . . . . . . . . . 2 . . . . Prevented . | . . . . . . . . . . . . . . Kills | -11 -10 -9 -8 -8 -7 -6 -6 -6 -6 -6 -5 -4 -3 ------- Run | Yrd Mat Mat Mat Sto Fac Fac Was Fac Low Low Fac Fac Res Combat Hostiles Destroyed 44 | . 4 5 8 13 5 3 . . 1 . 4 . 1 Guns 30 | . 4 5 . 8 5 2 . . 1 . 4 . 1 Cannons 12 | . . . 7 5 . . . . . . . . . AOE 1 | . . . 1 . . . . . . . . . . Classes Destroyed 8 | . 3 1 2 2 . . . . . . . . . Builder 1 | . . . 1 . . . . . . . . . . Recycler 2 | . . . . 1 . . . . . . . 1 . Watcher 10 | . 2 1 2 2 1 . . . . . 2 . . Swarmer 8 | . 3 . . . 2 . . . . . 3 . . Grunt 26 | . 1 3 7 10 . 3 . . 1 . . . 1 Duelist 1 | . . . 1 . . . . . . . . . . Sentry 6 | . . 2 . 2 2 . . . . . . . . Hunter 3 | . . . . 1 1 . . . . . 1 . . Best Kill Streak 6 | . 3 2 6 5 2 3 . . 1 . 4 1 1 Combat Bots Only 6 | . 2 2 6 5 2 3 . . 1 . 2 . 1 Max Kills in Single Turn 2 | . 1 1 2 1 1 1 . . 1 . 1 1 1 Gunslinging . | . . . . . . . . . . . . . . Exploded 1 | . . . 1 . . . . . . . . . . Melee . | . . . . . . . . . . . . . . Uniques/NPCs Destroyed . | . . . . . . . . . . . . . . Combat | -11 -10 -9 -8 -8 -7 -6 -6 -6 -6 -6 -5 -4 -3 -------- Run | Yrd Mat Mat Mat Sto Fac Fac Was Fac Low Low Fac Fac Res Hostile Shots Fired 777 | . 6 30 31 59 59 15 4 25 108 10 64 84 282 Missed 297 | . . 9 6 22 28 5 1 9 41 4 31 40 101 Damage Taken 7573 | . 43 225 450 455 229 148 75 236 1205 69 506 978 2954 Core 2561 | . 16 40 130 59 8 28 . 31 602 69 100 178 1300 Absorbed by Shields 16 | . . . . . . . 16 . . . . . . Ignored by Resistances 2096 | . 12 64 126 131 70 41 25 66 329 20 140 246 826 Regen/Repaired (Parts) 52 | . . . . 52 . . . . . . . . . Core Remaining (%) 79 | 100 93 90 . 65 98 . . . . 14 90 84 . Volleys Fired 151 | . 17 16 18 39 15 17 . . 3 . 16 4 6 Largest 3 | . 2 2 3 3 3 3 . . 3 . 3 1 3 Hottest 240 | . 90 90 240 240 168 121 . . 173 . 127 81 160 Shots Fired 394 | . 34 32 54 117 45 51 . . 8 . 35 4 14 Gun 244 | . 34 32 3 35 31 51 . . 8 . 34 2 14 Cannon 150 | . . . 51 82 14 . . . . . 1 2 . Launcher . | . . . . . . . . . . . . . . Special . | . . . . . . . . . . . . . . Kinetic 115 | . . . . 29 16 34 . . 4 . 26 . 6 Thermal 218 | . 6 15 51 88 29 17 . . 4 . 8 . . Explosive . | . . . . . . . . . . . . . . Electromagnetic 61 | . 28 17 3 . . . . . . . 1 4 8 Robot Hit Streak 37 | . 10 27 18 37 13 16 . . 9 . 12 4 16 Robot Miss Streak 3 | . 1 1 1 3 2 3 . . 1 . 3 1 . Penetration Max . | . . . . . . . . . . . . . . Secondary Targets 4 | . . 1 . . . 2 . . . . . . 1 Max Gunslinging Chain 1 | . . 1 . . . 1 . . . . . . 1 Shots Hit Robots 254 | . 15 27 38 78 32 17 . . 7 . 23 3 14 Core Hits 117 | . 7 12 19 25 17 12 . . 4 . 14 4 3 Critical Kills . | . . . . . . . . . . . . . . Critical Parts Destroyed . | . . . . . . . . . . . . . . Critical Strikes 4 | . 1 2 . . . 1 . . . . . . . Burn 3 | . . 2 . . . 1 . . . . . . . Corrupt 1 | . 1 . . . . . . . . . . . . Melee Attacks . | . . . . . . . . . . . . . . Impact . | . . . . . . . . . . . . . . Slashing . | . . . . . . . . . . . . . . Piercing . | . . . . . . . . . . . . . . Sneak Attacks . | . . . . . . . . . . . . . . Combat Hostiles . | . . . . . . . . . . . . . . Follow-up Attacks . | . . . . . . . . . . . . . . Damage Inflicted 5520 | . 233 330 1087 1786 652 351 . . 175 . 431 100 375 Guns 2733 | . 233 330 40 447 398 351 . . 175 . 386 52 321 Cannons 2700 | . . . 1047 1339 254 . . . . . 32 28 . Explosions . | . . . . . . . . . . . . . . Melee . | . . . . . . . . . . . . . . Ramming 87 | . . . . . . . . . . . 13 20 54 Kinetic 1196 | . . . . 367 179 231 . . 69 . 206 . 144 Thermal 3483 | . . 138 1047 1419 473 120 . . 106 . 180 . . Explosive . | . . . . . . . . . . . . . . Electromagnetic 754 | . 233 192 40 . . . . . . . 32 80 177 Impact . | . . . . . . . . . . . . . . Slashing . | . . . . . . . . . . . . . . Piercing . | . . . . . . . . . . . . . . Highest Corruption 5 | . . . . . . . 5 5 5 5 2 4 4 Average Corruption 4 | . . . . . . . 5 5 5 5 1 1 3 Corruption Purged 1 | . . . . . . . . . . . 1 . . Corruption Blocked . | . . . . . . . . . . . . . . Effects 32 | . . . . . . . 1 2 23 . . 2 4 Message Errors 9 | . . . . . . . . . 8 . . . 1 Matter Fused 5 | . . . . . . . . . 4 . . 1 . Heat Flow Errors 6 | . . . . . . . . 1 4 . . . 1 Energy Discharges 3 | . . . . . . . . . 3 . . . . Parts Fused 1 | . . . . . . . . . 1 . . . . Data Loss (minor) 3 | . . . . . . . . . 2 . . 1 . Data Loss (major) 2 | . . . . . . . . . . . . . 2 Misfires 1 | . . . . . . . . . 1 . . . . Alerts 2 | . . . . . . . 1 1 . . . . . Overload Shots . | . . . . . . . . . . . . . . Overflow Damage 16 | . . . 2 14 . . . . . . . . . Projectiles 16 | . . . 2 14 . . . . . . . . . Explosions . | . . . . . . . . . . . . . . Melee . | . . . . . . . . . . . . . . Knockbacks 3 | . . . . . . . . . . . 1 . 2 Impact 3 | . . . . . . . . . . . 1 . 2 Kinetic . | . . . . . . . . . . . . . . Secondary . | . . . . . . . . . . . . . . Self-Inflicted Damage 42 | . . . . . . . . . . . 6 10 26 Shots . | . . . . . . . . . . . . . . Rammed 6 | . . . . . . . . . . . 2 1 3 Targets Rammed 6 | . . . . . . . . . . . 2 1 3 Kicked . | . . . . . . . . . . . . . . Crushed . | . . . . . . . . . . . . . . Highest Temperature 435 | . 110 222 203 378 291 326 . 208 226 . 155 435 408 Average Temperature 111 | . 38 78 116 115 111 101 . 97 78 . 54 117 165 Received Heat Transfer 2265 | . 6 111 216 333 87 81 . 144 696 . 48 99 444 Effects 3 | . . . . . . . . . . . . . 3 Shutdowns 2 | . . . . . . . . . . . . . 2 Energy Bleed 1 | . . . . . . . . . . . . . 1 Siege Activations . | . . . . . . . . . . . . . . Robots Corrupted . | . . . . . . . . . . . . . . Combat Hostiles . | . . . . . . . . . . . . . . Parts Fried 5 | . 5 . . . . . . . . . . . . Impact Corruptions . | . . . . . . . . . . . . . . Robots Melted 1 | . . . . . . 1 . . . . . . . Combat Hostiles 1 | . . . . . . 1 . . . . . . . Parts Melted 12 | . . . 2 4 4 1 . . . . 1 . . Heat Transferred 7391 | . . 555 2050 2835 981 333 . . 237 . 400 . . Parts Sabotaged . | . . . . . . . . . . . . . . Parts Stolen . | . . . . . . . . . . . . . . Parts Stripped . | . . . . . . . . . . . . . . Power Chain Reactions . | . . . . . . . . . . . . . . Alert | -11 -10 -9 -8 -8 -7 -6 -6 -6 -6 -6 -5 -4 -3 ------- Run | Yrd Mat Mat Mat Sto Fac Fac Was Fac Low Low Fac Fac Res Peak Influence 384 | . 144 239 291 274 384 123 50 15 . . 249 110 235 Initial 106 | . . 51 15 43 106 97 35 . . . 22 20 49 Average 98 | . 115 131 129 53 201 99 19 2 . . 162 40 116 Maximum Alert Level 1 | . . 1 1 1 1 . . . . . 1 . 1 Low Security (%) 85 | 100 100 93 50 96 36 100 100 100 . . 76 100 93 Level 1 14 | . . 6 49 3 63 . . . . . 23 . 6 Level 2 . | . . . . . . . . . . . . . . Level 3 . | . . . . . . . . . . . . . . Level 4 . | . . . . . . . . . . . . . . Level 5 . | . . . . . . . . . . . . . . High Security . | . . . . . . . . . . . . . . Max Security . | . . . . . . . . . . . . . . Squads Dispatched 18 | . . 1 1 2 4 1 . . . . 4 4 1 Investigation 2 | . . . . . . . . . . . 1 . 1 Extermination 4 | . . . . . . 1 . . . . 1 2 . Reinforcement 9 | . . 1 1 2 1 . . . . . 2 2 . Assault . | . . . . . . . . . . . . . . Garrison 3 | . . . . . 3 . . . . . . . . Intercept . | . . . . . . . . . . . . . . Searches Triggered . | . . . . . . . . . . . . . . Construction Impeded 1 | . . . . . 1 . . . . . . . . Haulers Reinforced . | . . . . . . . . . . . . . . Active Scanning Responses . | . . . . . . . . . . . . . . Cargo Convoy Interrupts . | . . . . . . . . . . . . . . Stealth | -11 -10 -9 -8 -8 -7 -6 -6 -6 -6 -6 -5 -4 -3 --------- Run | Yrd Mat Mat Mat Sto Fac Fac Was Fac Low Low Fac Fac Res Distress Signals 6 | . 1 1 3 . . . . . . . . . 1 Communications Jammed 4 | . . . . . . . . . . . . 4 . Distress Signals 3 | . . . . . . . . . . . . 3 . Times Spotted 173 | . 6 8 18 22 11 3 6 4 14 5 17 22 37 Peak Tracking Total 13 | . 4 3 8 5 2 4 6 4 5 3 8 7 13 Tactical Retreats 25 | . 1 . 2 . . . . . 5 1 1 7 8 Traps | -11 -10 -9 -8 -8 -7 -6 -6 -6 -6 -6 -5 -4 -3 ------- Run | Yrd Mat Mat Mat Sto Fac Fac Was Fac Low Low Fac Fac Res Traps Triggered 9 | . . . . . . 1 . . . . 2 6 . Indirectly . | . . . . . . . . . . . . . . Trap Hack Attempts . | . . . . . . . . . . . . . . Triggered . | . . . . . . . . . . . . . . Disarmed 1 | . . . . 1 . . . . . . . . . Reprogrammed . | . . . . . . . . . . . . . . Reused . | . . . . . . . . . . . . . . Traps Extracted . | . . . . . . . . . . . . . . Installed . | . . . . . . . . . . . . . . Triggered . | . . . . . . . . . . . . . . Most Traps Carried 1 | . . . . . . . . . 1 1 1 . . Machines | -11 -10 -9 -8 -8 -7 -6 -6 -6 -6 -6 -5 -4 -3 ---------- Run | Yrd Mat Mat Mat Sto Fac Fac Was Fac Low Low Fac Fac Res Machines Disabled 6 | . . . 1 4 1 . . . . . . . . Max in Single Turn 1 | . . . 1 1 1 . . . . . . . . Machines Repaired . | . . . . . . . . . . . . . . Machines Dismantled . | . . . . . . . . . . . . . . Machines Sabotaged . | . . . . . . . . . . . . . . Overloaded Fab Kills . | . . . . . . . . . . . . . . Hacking | -11 -10 -9 -8 -8 -7 -6 -6 -6 -6 -6 -5 -4 -3 --------- Run | Yrd Mat Mat Mat Sto Fac Fac Was Fac Low Low Fac Fac Res Machines Accessed 36 | . 2 7 2 9 3 . . 1 . . 3 7 2 Terminals 32 | . 2 7 2 8 2 . . 1 . . 3 5 2 Fabricators 1 | . . . . . . . . . . . . 1 . Repair Stations 1 | . . . . 1 . . . . . . . . . Recycling Units 1 | . . . . . . . . . . . . 1 . Scanalyzers . | . . . . . . . . . . . . . . Garrison Access 1 | . . . . . 1 . . . . . . . . Total Hacks 101 | . 9 24 4 27 9 . . 1 . . 7 14 6 Successful 54 | . 6 15 3 15 3 . . . . . 3 8 1 Failed 47 | . 3 9 1 12 6 . . 1 . . 4 6 5 Catastrophic 13 | . 1 1 1 1 2 . . 1 . . 1 2 3 Database Lockouts . | . . . . . . . . . . . . . . Manual 2 | . . . . . . . . . . . 2 . . Terminals 93 | . 9 24 4 24 7 . . 1 . . 7 11 6 Fabricators 1 | . . . . . . . . . . . . 1 . Repair Stations 3 | . . . . 3 . . . . . . . . . Recycling Units 2 | . . . . . . . . . . . . 2 . Scanalyzers . | . . . . . . . . . . . . . . Garrison Access 2 | . . . . . 2 . . . . . . . . Terminal Hacks 52 | . 6 15 3 13 3 . . . . . 3 8 1 Record 2 | . . 2 . . . . . . . . . . . Open Door 3 | . . . . 3 . . . . . . . . . Open DSF 2 | . . . . . . . . . . . 1 1 . Branch Access Points 1 | . 1 . . . . . . . . . . . . Emergency Access Points 3 | . . 1 1 1 . . . . . . . . . Terminal Index 1 | . . 1 . . . . . . . . . . . Alert Level 1 | . . 1 . . . . . . . . . . . Unreport Threat 5 | . . . . 2 . . . . . . . 2 1 Locate Traps 4 | . 1 2 . . . . . . . . 1 . . Disarm Traps 1 | . . . . 1 . . . . . . . . . Dispatch Records 2 | . . . . . . . . . . . 1 1 . Maintenance Status 6 | . . 2 . 2 1 . . . . . . 1 . Security Status 1 | . 1 . . . . . . . . . . . . Surveillance Status 1 | . . . . 1 . . . . . . . . . Patrol Status 1 | . . 1 . . . . . . . . . . . Transport Status 3 | . 1 . 1 . . . . . . . . 1 . Reinforcement Status 1 | . . . . 1 . . . . . . . . . Assault Status 2 | . . 1 . 1 . . . . . . . . . Recall Investigation 1 | . . 1 . . . . . . . . . . . Hauler Manifests 2 | . 1 . . 1 . . . . . . . . . Registered Components 2 | . . 1 1 . . . . . . . . . . Zone Layout 7 | . 1 2 . . 2 . . . . . . 2 . Fabricator Hacks . | . . . . . . . . . . . . . . Repair Station Hacks 2 | . . . . 2 . . . . . . . . . Scan Component 1 | . . . . 1 . . . . . . . . . Repair 1 | . . . . 1 . . . . . . . . . Recycling Unit Hacks . | . . . . . . . . . . . . . . Scanalyzer . | . . . . . . . . . . . . . . Garrison Access Hacks . | . . . . . . . . . . . . . . Unauthorized Hacks . | . . . . . . . . . . . . . . Terminals . | . . . . . . . . . . . . . . Fabricators . | . . . . . . . . . . . . . . Repair Stations . | . . . . . . . . . . . . . . Recycling Units . | . . . . . . . . . . . . . . Scanalyzers . | . . . . . . . . . . . . . . Garrison Access . | . . . . . . . . . . . . . . Data Cores Recovered . | . . . . . . . . . . . . . . Used . | . . . . . . . . . . . . . . Hacking Detections 31 | . 2 6 2 6 3 . . 1 . . 2 7 2 Full Trace Events 2 | . . . . . . . . . . . 1 . 1 Feedback Events . | . . . . . . . . . . . . . . Feedback Blocked . | . . . . . . . . . . . . . . Robot Schematics Acquired . | . . . . . . . . . . . . . . Robots Built . | . . . . . . . . . . . . . . Authchips . | . . . . . . . . . . . . . . Time . | . . . . . . . . . . . . . . Total Robot Build Rating . | . . . . . . . . . . . . . . Part Schematics Acquired . | . . . . . . . . . . . . . . Parts Built . | . . . . . . . . . . . . . . Authchips . | . . . . . . . . . . . . . . Time . | . . . . . . . . . . . . . . Total Part Build Rating . | . . . . . . . . . . . . . . Parts Repaired 1 | . . . . 1 . . . . . . . . . Time 44 | . . . . 44 . . . . . . . . . Parts Recycled . | . . . . . . . . . . . . . . Recycled Matter . | . . . . . . . . . . . . . . Retrieved Matter . | . . . . . . . . . . . . . . Retrieved Components . | . . . . . . . . . . . . . . Parts Scanalyzed . | . . . . . . . . . . . . . . Part Schematics Acquired . | . . . . . . . . . . . . . . Parts Damaged . | . . . . . . . . . . . . . . Bothacking | -11 -10 -9 -8 -8 -7 -6 -6 -6 -6 -6 -5 -4 -3 ------------ Run | Yrd Mat Mat Mat Sto Fac Fac Was Fac Low Low Fac Fac Res Used RIF Installer . | . . . . . . . . . . . . . . Robots Hacked . | . . . . . . . . . . . . . . Non-combat . | . . . . . . . . . . . . . . Combat . | . . . . . . . . . . . . . . Robot Hacks Applied . | . . . . . . . . . . . . . . Relay Couplers Released . | . . . . . . . . . . . . . . Fabnet Peak Effective % . | . . . . . . . . . . . . . . Robots Rewired . | . . . . . . . . . . . . . . Allies Hacked . | . . . . . . . . . . . . . . Hacks Repelled . | . . . . . . . . . . . . . . Allies | -11 -10 -9 -8 -8 -7 -6 -6 -6 -6 -6 -5 -4 -3 -------- Run | Yrd Mat Mat Mat Sto Fac Fac Was Fac Low Low Fac Fac Res Total Allies 11 | . . . . 10 . . 1 . . . . . . Largest Group 10 | . . . . 10 9 3 1 . . . . . . Highest-Rated Group 173 | . . . . 173 144 48 31 . . . . . . Highest-Rated Ally 31 | . . . . 29 16 16 31 . . . . . . Total Orders 8 | . . . . 7 . . 1 . . . . . . EXPLORE 8 | . . . . 7 . . 1 . . . . . . Ally Attacks 108 | . . . . 38 59 10 1 . . . . . . Total Damage 1390 | . . . . 486 792 91 21 . . . . . . Kills 11 | . . . . 5 6 . . . . . . . . Allies Corrupted . | . . . . . . . . . . . . . . Allies Melted . | . . . . . . . . . . . . . . Intel | -11 -10 -9 -8 -8 -7 -6 -6 -6 -6 -6 -5 -4 -3 ------- Run | Yrd Mat Mat Mat Sto Fac Fac Was Fac Low Low Fac Fac Res Robot Analysis Total . | . . . . . . . . . . . . . . Derelict Logs Recovered 1 | . . . . . . . . . 1 . . . . Drone Launches 22 | . . . . 16 . . 2 . . . . . 4 Drone Recoveries 14 | . . . . 10 . . 1 . . . . . 3 Exploration | -11 -10 -9 -8 -8 -7 -6 -6 -6 -6 -6 -5 -4 -3 ------------- Run | Yrd Mat Mat Mat Sto Fac Fac Was Fac Low Low Fac Fac Res Turns Passed 6248 | 80 359 461 424 1490 561 314 102 64 984 17 418 633 341 Spaces Moved 4797 | 46 230 240 158 642 404 177 80 53 892 34 473 1012 356 Core 289 | 2 . . . . . . . . 183 34 70 . . Treads 114 | 18 . 25 71 . . . . . . . . . . Legs 2623 | 26 230 215 87 642 404 177 80 53 709 . . . . Wheels . | . . . . . . . . . . . . . . Hover 1615 | . . . . . . . . . . . 247 1012 356 Flight 156 | . . . . . . . . . . . 156 . . Fastest Speed 20 | 50 120 120 160 120 120 120 120 120 50 50 24 20 36 Average Speed 102 | 132 120 148 191 178 120 128 123 120 106 50 59 46 48 Slowest Speed 330 | 160 120 330 260 190 120 190 190 120 250 50 200 116 150 Overloaded Moves . | . . . . . . . . . . . . . . Propulsion Burnouts . | . . . . . . . . . . . . . . Robots Hopped . | . . . . . . . . . . . . . . Cave-ins Triggered . | . . . . . . . . . . . . . . Exploration Rate (%) 30 | 4 40 27 20 95 15 4 69 3 78 10 17 34 14 Regions Visited 13 Branch Regions 3 Pre-discovered Areas 1 | . . . . 1 . . . . . . . . . Known Exits Taken 8 | . 1 1 1 1 1 . . 1 . . 1 1 . Unknown Exits Taken 3 | 1 . . . . . . . . 1 1 . . . Scrap Searched 2 | . . . . . . . . . 2 . . . . Spaces Dug . | . . . . . . . . . . . . . . Terrain Destroyed 25 | . . . 7 18 . . . . . . . . . Melee . | . . . . . . . . . . . . . . Projectile 25 | . . . 7 18 . . . . . . . . . AOE . | . . . . . . . . . . . . . . Terrain Rammed . | . . . . . . . . . . . . . . Walls Destroyed . | . . . . . . . . . . . . . . Machines Disabled . | . . . . . . . . . . . . . . Actions | -11 -10 -9 -8 -8 -7 -6 -6 -6 -6 -6 -5 -4 -3 --------- Run | Yrd Mat Mat Mat Sto Fac Fac Was Fac Low Low Fac Fac Res Total 5843 | 63 281 316 243 904 452 228 82 53 922 33 587 1167 512 Wait 482 | . 18 28 21 150 7 7 . . 3 . 15 99 134 Move 4786 | 45 229 239 157 641 403 177 79 52 891 33 473 1011 356 Hop . | . . . . . . . . . . . . . . Pick Up 114 | 10 8 15 12 15 6 8 . . 4 . 20 12 4 Fast Attach 46 | 2 1 3 6 5 3 1 1 . 2 . 8 14 . Attach 66 | 4 1 4 5 7 3 2 . 1 7 . 14 11 7 Detach 5 | . . . . . . . . . 5 . . . . Swap 53 | 2 1 1 6 22 5 8 1 . 1 . 1 4 1 Drop 109 | . 6 10 18 25 10 8 1 . 6 . 13 11 1 Fire 151 | . 17 16 18 39 15 17 . . 3 . 16 4 6 Melee . | . . . . . . . . . . . . . . Ram 5 | . . . . . . . . . . . 1 1 3 Kick . | . . . . . . . . . . . . . . Crush . | . . . . . . . . . . . . . . Escape Stasis 26 | . . . . . . . . . . . 26 . . Rewire . | . . . . . . . . . . . . . . Trap . | . . . . . . . . . . . . . . Miscellaneous . | . . . . . . . . . . . . . . Route ------- -11/Scrapyard -10/Materials (discovered 3 exits: *Mat / Min x2) -9/Materials -8/Materials -8/Storage -7/Factory -6/Factory -6/Waste -6/Factory -6/Lower Caves (discovered 2 exits: [*Low] / [*Dat]) -6/Lower Caves -5/Factory -4/Factory (discovered 2 exits: *Res / *Ext) -3/Research History --------- Turn | Location | Event 29 | -11/Scrapyard | Discovered new exit (range 14) 81 | -11/Scrapyard | Entered Materials 145 | -10/Materials | Identified exit to Mines 306 | -10/Materials | Build established: Mutant 400 | -10/Materials | Discovered new exit (range 13) 415 | -10/Materials | Identified exit to Materials 440 | -10/Materials | Entered another Materials area 440 | -9/Materials | Evolved 2 slots: Propulsion x1, Utility x1 882 | -9/Materials | Discovered new exit (range 9) 899 | -9/Materials | Identified exit to Materials 901 | -9/Materials | Entered another Materials area 901 | -8/Materials | Evolved 2 slots: Utility x1, Weapon x1 1208 | -8/Materials | Build established: Skirmisher 1234 | -8/Materials | Discovered new exit (range 13) 1323 | -8/Materials | Identified exit to Storage 1325 | -8/Materials | Entered Storage 1458 | -8/Storage | Learned location of Armory (-3) 1548 | -8/Storage | Build established: Scavenger-Skirmisher 2251 | -8/Storage | Repaired Coolant Injector? 2698 | -8/Storage | Assisted by bots powering up and referring to "LRC-V3" 2770 | -8/Storage | Discovered new exit (range 18) 2814 | -8/Storage | Identified exit to Factory 2815 | -8/Storage | Entered Factory 2815 | -7/Factory | Accompanied by 9 allies 2815 | -7/Factory | Evolved 2 slots: Propulsion x2 2943 | -7/Factory | Garrison activated, responded to threat 3014 | -7/Factory | Build established: Commander-Skirmisher 3356 | -7/Factory | Discovered new exit (range 15) 3375 | -7/Factory | Identified exit to Factory 3376 | -7/Factory | Entered another Factory area 3376 | -6/Factory | Accompanied by 3 allies 3376 | -6/Factory | Evolved 2 slots: Power x1, Utility x1 3679 | -6/Factory | Lost 3 allies 3690 | -6/Factory | Sucked down chute 3690 | -6/Factory | Entered Waste 3691 | -6/Waste | Met a frightened Derelict 3701 | -6/Waste | Spotted C-40 Crusher 3702 | -6/Waste | Spotted C-40 Crusher 3705 | -6/Waste | EMP discharged 3730 | -6/Waste | Spotted C-40 Crusher 3734 | -6/Waste | Spotted C-40 Crusher 3743 | -6/Waste | Spotted C-40 Crusher 3746 | -6/Waste | Crushed by Compactor (1 part destroyed, 1 dropped) 3747 | -6/Waste | Crushed by Compactor (1 part destroyed, 2 dropped) 3750 | -6/Waste | Crushed by Compactor (1 part destroyed, 1 dropped) 3757 | -6/Waste | Spotted C-40 Crusher 3774 | -6/Waste | Discovered new exit (range 16) 3781 | -6/Waste | Lost 3 parts (2n1u) 3790 | -6/Waste | Identified exit to Factory 3792 | -6/Waste | Entered Factory 3844 | -6/Factory | Discovered new exit (range 12) 3855 | -6/Factory | Identified exit to Lower Caves 3856 | -6/Factory | Entered Lower Caves 4022 | -6/Lower Caves | Build established: Scavenger-Mutant 4053 | -6/Lower Caves | Spotted B-75 Beast 4099 | -6/Lower Caves | Lost 4 parts (1p2n1w) 4194 | -6/Lower Caves | Learned location of 1 exit from Factory 4363 | -6/Lower Caves | Build established: Mutant 4673 | -6/Lower Caves | Found DRS Beacon 4775 | -6/Lower Caves | Core integrity fell below 50% 4823 | -6/Lower Caves | A Derelict revealed a hidden shortcut to meet someone special 4835 | -6/Lower Caves | Discovered new exit (range 11) 4839 | -6/Lower Caves | Lost 3 parts (1p1n1u) 4840 | -6/Lower Caves | Entered another Lower Caves area 4843 | -6/Lower Caves | Core integrity fell below 20% 4850 | -6/Lower Caves | Discovered new exit (range 15) 4857 | -6/Lower Caves | Entered Factory 4857 | -5/Factory | Evolved 2 slots: Utility x2 4858 | -5/Factory | Identified exit to Factory 5275 | -5/Factory | Entered another Factory area 5275 | -4/Factory | Evolved 2 slots: Propulsion x1, Utility x1 5436 | -4/Factory | Build established: Hacker-Tank 5443 | -4/Factory | Identified exit to DSF 5452 | -4/Factory | Discovered new exit (range 13) 5467 | -4/Factory | Identified exit to Extension 5902 | -4/Factory | Discovered new exit (range 11) 5908 | -4/Factory | Identified exit to Research 5908 | -4/Factory | Entered Research 5908 | -3/Research | Evolved 2 slots: Power x1, Propulsion x1 6153 | -3/Research | Lost 16 parts (3p7n3u3w) 6201 | -3/Research | Core integrity fell below 50% 6240 | -3/Research | Core integrity fell below 20% 6249 | -3/Research | Destroyed by G-67 Veteran with Plasma Rifle Last Messages --------------- 06218_ Penetrated by Slug. 06224_ Connecting with Terminal... 06224_ ALERT: Suspicious activity at Terminal R014. Dispatching Investigation squad. 06225_ System corrupted: Substantial component data lost. 06226_ Slug penetrates Wall. 06236_ Acquired Lgt. Particle Reactor. 06238_ Slug penetrates Wall. 06241_ Adv. Cryofiber Web destroyed. 06242_ Penetrated by Slug. 06242_ Slug penetrates Antiparticle Reservoir. 06243_ Med. Storage Unit destroyed. 06244_ Slammed into S-43 Plague. 06245_ Lgt. Particle Reactor destroyed. 06249_ Antiparticle Reservoir explodes. 06249_ S-43 Plague destroyed. 06249_ Acquired 19 matter. 06249_ Imp. Gyrokinetic Inverter destroyed. 06249_ Slug penetrates Wall. Map ----- +----------------------------------------------------+ | ?????????????????????????????????????????????????? | | ?????????????????????????????????????????????????? | | ?????????????????????????????????????????????????? | | ?????????????????????????????????????????????????? | | ?????????????????????????????????????????????????? | | ?????????????????????????????????????????????????? | | ?????????????????????????????????????????????????? | | ?????????????????????????????????????????????????? | | ?????????????????????????????????????????????????? | | ?????????????????????????????????????????????????? | | ?????????????????????????????????????????????????? | | ?????????????????????????????????????????????????? | | ?????????????????????????????????????????????????? | | ????????????????????????????? ?????????????????? | | ????????????????????????????? ?????????????????? | | ????????????????????????????? #?????????????????? | | ??????????????############### #?????????????????? | | ??????????????# # #?????????????????? | | ??????????????# # #?????????????????? | | ??????????????? # #?????????????????? | | ?????????????????! # #?????????????????? | | ?????????????????? ! # #?????????????????? | | ???????????????????? u + #?????????????????? | | ??????????????????#### ## #?????????????????? | | ??????????????????# = ##????????????????? | | ??????????????????# =@% R#########/##?????? | | ??????????????????# Y + ?????? | | ?????????????????# %=% #??????? | | ?????????????????# g ### #??????? | | ?????????????????## g ##?????? ???????? | | ?????????????????# h #?????????????????? | | ?????????????????## #?????????????????? | | ??????????????????# h #?????????????????? | | ??????????????????# R ###???????????????? | | ??????????????????## g #???????????????? | | ???????????????????######## #???????????????? | | ????????????????????# #???????????????? | | ????????????????????# ##### T #???????????????? | | ????????????????????# #???# #???????????????? | | ????????????????????# #???# #???????????????? | | ????????????????????# #???########???????????????? | | ????????????#####???# #??????????????????????????? | | ????????????# ?### ###????????????????????????? | | ????????????# # #????????????????????????? | | ????????????# # #????????????????????????? | | ????????????# + #????????????????????????? | | ????????????# # #????????????????????????? | | ????????????# # #????????????????????????? | | ????????????# ?## ##????????????????????????? | | ????????????#####??#! #?????????????????????????? | +----------------------------------------------------+ Best States ------------- Heat Dissipation 56 Coolant Potential 100 Energy Generation 42 Energy Capacity 500 Matter Stores 300 Matter Capacity 300 Sight Range 20 Robot Scan Range 15 Terrain Scan Density 10 Jamming Range 16 Power Amplification 50 Additional Mass Support 9 Base Temperature (-) 200 Armor Coverage 225 Resistance: KI 20 Resistance: TH 20 Resistance: EX 20 Resistance: EM 20 Resistance: I 20 Resistance: S 20 Resistance: P 20 Weapon Cycling 15 Evasion (%) 63 Recoil Reduction 2 Matter Filtering 30 Offensive Hacking 20 Item Schematics ----------------- None Robot Schematics ------------------ None Fabricated ------------ Nothing Alien Tech Used ----------------- None Achievements -------------- Can't Catch Me Streaker Challenges ------------ None Game ------ Seed AssemblyCoolingSpecial Manual? 0 Play Time 03:07:48 Cumulative 58.4 hours Start 2024.09.27 @ 12:54:52 End 2024.09.29 @ 01:14:11 Sessions 21 Manual Loads 0 Difficulty Adventurer Special Mode None Game No. 22 Rogue 10 Adventurer 12 Explorer 0 Win Type - Total 1 Types 1/0/0/0/0/0/0/0/0 Lore% 3 Gallery% 35 Achievement% 29 Wizard Run 0 Options --------- Layout 2 ASCII 0 Keyboard 0 Movement Mouse Keybinds 0 Fullscreen 1 Font 32/SmallcapsGlow Map View 50x44 Zoom Use 0% Tactical HUD 1 Map Filters NONE Filters NONE Steam 1 RUN: 70ac868f-f4f8-4235-83ab-87db1d85e8cc